fUST/lending_fUST_20240405
["ID","MTS","AMOUNT","RATE_DAILY","PERIOD"]
[321524605,1712287843927,-8981.94080096,0.00040126,4]
[321525626,1712288446693,-213.0,0.00035855,4]
[321525644,1712288962822,-440.12703912,0.00035671,4]
[321525645,1712288962845,-1381.12762273,0.00035672,4]
[321526388,1712289042798,-953.30710077,0.00035856,2]
[321526390,1712289042809,-636.66535504,0.00037649,2]
[321526392,1712289042819,-620.83326775,0.00039531,2]
[321526394,1712289042829,-503.00233042,0.00040124,4]
[321526397,1712289042840,-403.758,0.00040124,4]
[321526399,1712289042850,-1092.59826057,0.00040124,4]
[321526401,1712289042860,-212.17746078,0.00040125,4]
[321526403,1712289042871,-802.03800524,0.00040125,4]
[321526405,1712289042881,-17619.10883439,0.00040126,4]
[321526407,1712289042890,-921.93384086,0.00040127,4]
[321526409,1712289042900,-264.03139139,0.00040128,4]
[321526411,1712289042911,-1171.45982359,0.00040129,4]
[321526413,1712289042920,-2110.69798225,0.00040129,2]
[321526415,1712289042930,-301.61332653,0.00040129,4]
[321526417,1712289042940,-19223.73649712,0.0004013,2]
[321526497,1712289045914,-9115.48685068,0.0004013,2]
[321527139,1712289498202,10000.0,0.00045195,30]
[321527141,1712289526839,10000.0,0.00045195,30]
[321527142,1712289538523,10000.0,0.00045195,30]
[321527145,1712289628970,10000.0,0.00045195,30]
[321527286,1712290237955,-179.96918907,0.00034829,4]
[321527288,1712290237964,-160.03989228,0.0003483,2]
[321527290,1712290237974,-174.93854045,0.0003493,4]
[321527440,1712290243061,-66.07068694,0.0003493,4]
[321527441,1712290243070,-152.11686733,0.00039728,2]
[321527442,1712290243080,-169.713675,0.0004,2]
[321527443,1712290243090,-1395.38252851,0.00040129,120]
[321527444,1712290243101,-2452.702,0.00040129,120]
[321527555,1712291432179,-155.01705188,0.00037121,4]
[321527556,1712291432189,-1725.8170014,0.00037122,2]
[321527557,1712291432198,-387.56731318,0.00037739,4]
[321527558,1712291432208,-295.69048987,0.00038029,2]
[321527559,1712291432217,-165.10938446,0.00038056,8]
[321527560,1712291432226,-400.0,0.00038122,2]
[321527561,1712291432235,-400.0,0.00038122,3]
[321527562,1712291432245,-40046.79836737,0.00038123,2]
[321527563,1712291432254,-165.88970628,0.00038156,2]
[321527564,1712291432263,-500.0,0.00038356,2]
[321527565,1712291432273,-500.0,0.0003841,2]
[321527567,1712291432282,-500.0,0.00038465,2]
[321527569,1712291432291,-500.0,0.0003852,2]
[321527571,1712291432301,-217.93046581,0.00038575,2]
[321527573,1712291432310,-154.5954757,0.00039728,2]
[321527575,1712291432320,-165.88970626,0.00039893,2]
[321527577,1712291432330,-7011.00070683,0.00040129,120]
[321527579,1712291432339,-155.66542592,0.00040129,4]
[321527581,1712291432348,-2949.89692314,0.0004013,2]
[321527583,1712291432357,-166.666666,0.00041096,2]
[321527585,1712291432367,-165.88970626,0.0004163,2]
[321527587,1712291432376,-560.0,0.00041934,3]
[321527588,1712291432386,-392.0,0.00041934,3]
[321527589,1712291432395,-295.69048987,0.00043029,2]
[321527590,1712291432405,-165.88970626,0.00043367,2]
[321527591,1712291432414,-270.369598,0.00044554,30]
[321527592,1712291432425,-162.228683,0.00044554,30]
[321527593,1712291432434,-192.293757,0.00044554,30]
[321527594,1712291432443,-163.89835,0.00044554,30]
[321527595,1712291432452,-270.369601,0.00044554,30]
[321527596,1712291432460,-162.228683,0.00044554,30]
[321527597,1712291432470,-192.293757,0.00044554,30]
[321527598,1712291432479,-163.89835,0.00044554,30]
[321527599,1712291432488,-1412.50361086,0.0004456,4]
[321527600,1712291432497,-151.0,0.0004456,7]
[321527601,1712291432506,-151.0,0.0004456,7]
[321527602,1712291432515,-952.501767,0.0004456,7]
[321527603,1712291432524,-952.501767,0.0004456,7]
[321527604,1712291432533,-487.4018791,0.0004488,15]
[321527605,1712291432542,-1500.0,0.000449,2]
[321527606,1712291432552,-205.730126,0.000449,7]
[321527607,1712291432561,-314.06154265,0.0004494,7]
[321527873,1712291440331,-680.33381696,0.0004494,7]
[321528077,1712292050654,30047.8,0.00045196,120]
[321528078,1712292089828,10000.0,0.00025,10]
[321528079,1712292103550,10000.0,0.0002555,2]
[321528080,1712292114982,4565.77466555,0.0002555,2]
[321528081,1712292115248,-5325.54082776,0.0002555,2]
[321528082,1712292115363,-108.68450669,0.0002555,2]
[321528083,1712292125132,10000.0,0.0002505,2]
[321528084,1712292137752,10000.0,0.0002505,2]
[321528227,1712292638348,-155.01085076,0.00044449,4]
[321528230,1712292638357,-154.5954757,0.0004445,2]
[321528233,1712292638365,-165.88970626,0.000449,2]
[321528235,1712292638374,-117.08877853,0.0004494,7]
[321528237,1712292638383,-1539.54762425,0.0004494,4]
[321528240,1712292638407,-2195.99395243,0.0004494,4]
[321528382,1712292643494,-488.62091358,0.0004494,4]
[321528383,1712292643505,-537.0,0.00044999,3]
[321528384,1712292643515,-640.79344125,0.00045,2]
[321528385,1712292643525,-54.60920921,0.00045,120]
[321528419,1712292959142,500.0,0.000255,4]
[321528420,1712292961734,10000.0,0.0002505,2]
[321528421,1712292974072,10000.0,0.0002505,2]
[321528422,1712292985713,10000.0,0.0002505,2]
[321528423,1712292998042,10000.0,0.0002505,2]
[321528424,1712293011894,10000.0,0.00025,10]
[321528425,1712293022513,10000.0,0.0002505,2]
[321528431,1712293589958,786.72512108,0.0002505,2]
[321528503,1712293832588,-155.01085076,0.00035098,4]
[321528504,1712293832600,-485.63787063,0.00035099,4]
[321528505,1712293832611,-737.63596313,0.000351,2]
[321528506,1712293832622,-399.13465177,0.0004,120]
[321528507,1712293832633,-550.0,0.00042749,3]
[321528508,1712293832644,-7058.51104228,0.0004275,2]
[321528618,1712293838645,-621.17403756,0.0004275,2]
[321528631,1712293838701,-4541.88841807,0.0004275,2]
[321529200,1712293843693,-2463.3169668,0.0004275,2]
[321529203,1712293843703,-154.59547571,0.0004455,2]
[321529206,1712293843713,-165.10938446,0.00044899,12]
[321529209,1712293843722,-159.08581479,0.000449,2]
[321529212,1712293843734,-387.09028585,0.00044998,4]
[321529215,1712293843743,-275.52841021,0.00044998,4]
[321529218,1712293843752,-3148.19830244,0.00044998,2]
[321529221,1712293843761,-552.69388456,0.00044999,4]
[321529224,1712293843771,-317.5883651,0.00045,120]
[321531005,1712295038957,-155.00310006,0.0003754,4]
[321531007,1712295038966,-990.14346049,0.00037541,2]
[321531010,1712295038975,-169.99910638,0.00039,7]
[321531013,1712295038984,-638.50717302,0.00039418,2]
[321531015,1712295038993,-550.0,0.00042887,3]
[321531019,1712295039002,-550.0,0.00042887,5]
[321531021,1712295039011,-14186.9393466,0.00042888,2]
[321531024,1712295039020,-491.3707927,0.00042898,2]
[321531027,1712295039030,-262.89622958,0.00043041,2]
[321531031,1712295039040,-335.0,0.00043097,2]
[321531034,1712295039049,-21701.4336965,0.00043097,2]
[321531036,1712295039059,-263.606952,0.0004314,2]
[321531037,1712295039069,-262.89622955,0.00043506,2]
[321531038,1712295039079,-262.89622955,0.00043971,2]
[321531039,1712295039090,-155.61366058,0.00044098,4]
[321531040,1712295039099,-5500.1971803,0.0004423,2]
[321531041,1712295039109,-155.7243974,0.00044356,2]
[321531042,1712295039119,-153.0,0.00044356,2]
[321531043,1712295039131,-153.0,0.00044356,2]
[321531044,1712295039140,-153.0,0.00044378,2]
[321531045,1712295039150,-262.89622955,0.00044435,2]
[321531046,1712295039160,-188.04191089,0.00044449,2]
[321531047,1712295039169,-154.59547571,0.0004455,2]
[321531048,1712295039179,-1449.38061563,0.00044773,4]
[321531049,1712295039188,-1043.37396472,0.000449,2]
[321531050,1712295039197,-262.89622955,0.000449,2]
[321531051,1712295039207,-175.45328542,0.00044997,120]
[321531052,1712295039216,-163.06578354,0.00044997,120]
[321531053,1712295039225,-299.91946051,0.00044998,2]
[321531054,1712295039234,-13742.54103017,0.00044998,120]
[321531055,1712295039244,-155.30000007,0.00044998,4]
[321531057,1712295039254,-186.37137842,0.00044998,4]
[321531059,1712295039264,-467.59209925,0.00044999,120]
[321531060,1712295039273,-500.0,0.00044999,120]
[321531061,1712295039282,-500.0,0.00044999,120]
[321531063,1712295039292,-152.05954433,0.00044999,120]
[321531064,1712295039301,-500.0,0.00044999,120]
[321531066,1712295039310,-235.00587305,0.00044999,120]
[321531068,1712295039319,-251.17781103,0.00044999,120]
[321531069,1712295039328,-976.91,0.00044999,7]
[321531071,1712295039337,-976.91,0.00044999,7]
[321531073,1712295039347,-976.91,0.00044999,7]
[321531075,1712295039356,-976.91,0.00044999,7]
[321531077,1712295039365,-976.91,0.00044999,7]
[321531078,1712295039376,-976.91,0.00044999,7]
[321531080,1712295039385,-976.91,0.00044999,7]
[321531082,1712295039395,-976.91,0.00044999,7]
[321531084,1712295039404,-194.576977,0.00044999,7]
[321531086,1712295039413,-151.0,0.00044999,7]
[321531087,1712295039423,-162.875921,0.00044999,7]
[321531088,1712295039433,-162.875921,0.00044999,7]
[321531089,1712295039442,-162.875921,0.00044999,7]
[321531101,1712295039561,-162.875921,0.00044999,7]
[321531103,1712295039571,-154.314562,0.00044999,7]
[321531105,1712295039581,-151.0,0.00044999,7]
[321531107,1712295039591,-152.55302,0.00044999,7]
[321531109,1712295039600,-154.057933,0.00044999,7]
[321531111,1712295039609,-154.057933,0.00044999,7]
[321531113,1712295039618,-154.057933,0.00044999,7]
[321531115,1712295039630,-154.057933,0.00044999,7]
[321531117,1712295039640,-52533.64494869,0.00045,120]
[321531118,1712295039650,-2458.58031988,0.00045,2]
[321531120,1712295039660,-199.999999,0.00045,30]
[321531123,1712295039670,-340.41651088,0.00045,120]
[321531125,1712295039682,-8168.39717548,0.00045,120]
[321531127,1712295039692,-155.08766178,0.00045,2]
[321531129,1712295039702,-1979.91953315,0.00045,4]
[321531131,1712295039712,-1011.80959258,0.00045,4]
[321531133,1712295039721,-155.11266942,0.00045,4]
[321531134,1712295039731,-11447.36050606,0.00045,4]
[321531136,1712295039740,-782.21993348,0.00045,4]
[321531138,1712295039750,-155.69892803,0.00045,4]
[321531140,1712295039760,-354.78771304,0.00045,4]
[321531142,1712295039771,-155.22274368,0.00045,4]
[321531144,1712295039780,-191.13549969,0.00045,4]
[321531146,1712295039791,-384.83018219,0.00045,2]
[321531148,1712295039801,-421.76708307,0.00045,2]
[321531150,1712295039811,-930.25229122,0.00045,4]
[321531152,1712295039821,-155.56812674,0.00045,2]
[321531154,1712295039831,-151.0,0.00045,7]
[321531155,1712295039841,-151.0,0.00045,7]
[321531156,1712295039850,-224.923491,0.00045,7]
[321531158,1712295039861,-151.0,0.00045,7]
[321531160,1712295039873,-151.0,0.00045,7]
[321531163,1712295039884,-151.0,0.00045,7]
[321531165,1712295039894,-151.0,0.00045,7]
[321531166,1712295039903,-151.0,0.00045,7]
[321531169,1712295039912,-151.0,0.00045,7]
[321531171,1712295039922,-151.0,0.00045,7]
[321531172,1712295039932,-151.0,0.00045,7]
[321531174,1712295039941,-200.559105,0.00045,7]
[321531177,1712295039951,-857.25159,0.00045,7]
[321531179,1712295039961,-857.25159,0.00045,7]
[321531181,1712295039970,-857.25159,0.00045,7]
[321531182,1712295039980,-857.25159,0.00045,7]
[321531184,1712295039989,-857.25159,0.00045,7]
[321531186,1712295039999,-857.25159,0.00045,7]
[321531188,1712295040008,-857.25159,0.00045,7]
[321531190,1712295040016,-857.25159,0.00045,7]
[321531192,1712295040026,-151.0,0.00045,7]
[321531194,1712295040035,-151.0,0.00045,7]
[321531196,1712295040044,-193.333263,0.00045,7]
[321531198,1712295040054,-162.875921,0.00045,7]
[321531200,1712295040065,-162.875921,0.00045,7]
[321531202,1712295040075,-162.875921,0.00045,7]
[321531204,1712295040088,-162.875921,0.00045,7]
[321531206,1712295040097,-162.875921,0.00045,7]
[321531208,1712295040106,-162.875921,0.00045,7]
[321531210,1712295040115,-162.875921,0.00045,7]
[321531214,1712295040129,-162.875921,0.00045,7]
[321531216,1712295040138,-162.875921,0.00045,7]
[321531218,1712295040148,-162.875921,0.00045,7]
[321531220,1712295040158,-154.057933,0.00045,7]
[321531222,1712295040168,-154.057933,0.00045,7]
[321531224,1712295040177,-154.057933,0.00045,7]
[321531226,1712295040186,-154.057933,0.00045,7]
[321531228,1712295040195,-154.057933,0.00045,7]
[321531230,1712295040204,-154.057933,0.00045,7]
[321531232,1712295040213,-154.057933,0.00045,7]
[321531234,1712295040222,-154.057933,0.00045,7]
[321531236,1712295040232,-154.057933,0.00045,7]
[321531238,1712295040242,-154.057933,0.00045,7]
[321531240,1712295040252,-154.057933,0.00045,7]
[321531243,1712295040262,-154.057933,0.00045,7]
[321531245,1712295040271,-192.293757,0.00045111,30]
[321531247,1712295040281,-163.89835,0.00045111,30]
[321531249,1712295040291,-192.293757,0.00045111,30]
[321531251,1712295040300,-163.89835,0.00045111,30]
[321531252,1712295040309,-151.0,0.00045111,7]
[321531254,1712295040318,-162.875921,0.00045111,7]
[321531256,1712295040327,-162.875921,0.00045111,7]
[321531258,1712295040336,-182.905119,0.00045159,7]
[321531260,1712295040346,-151.0,0.00045159,7]
[321531262,1712295040354,-857.25159,0.00045159,7]
[321531264,1712295040364,-857.25159,0.00045159,7]
[321531266,1712295040375,-151.0,0.0004517,7]
[321531268,1712295040383,-857.25159,0.0004517,7]
[321531270,1712295040392,-857.25159,0.0004517,7]
[321531272,1712295040401,-162.875921,0.0004517,7]
[321531274,1712295040410,-162.875921,0.0004517,7]
[321531276,1712295040418,-154.057933,0.0004517,7]
[321531278,1712295040427,-154.057933,0.0004517,7]
[321531280,1712295040437,-2286.83119745,0.00045172,2]
[321531282,1712295040446,-1294.53438501,0.00045172,2]
[321531284,1712295040454,-154.057933,0.00045196,7]
[321531286,1712295040464,-154.057942,0.00045196,7]
[321531288,1712295040473,-826.82202629,0.00045203,5]
[321531290,1712295040482,-10000.0,0.00045204,30]
[321531292,1712295040491,-10000.0,0.00045204,30]
[321531294,1712295040500,-565.57,0.00045204,30]
[321531296,1712295040509,-151.0,0.00045204,7]
[321531298,1712295040519,-151.0,0.00045204,7]
[321531300,1712295040528,-151.0,0.00045204,7]
[321531302,1712295040537,-151.0,0.00045204,7]
[321531304,1712295040546,-857.25159,0.00045204,7]
[321531306,1712295040556,-857.25159,0.00045204,7]
[321531308,1712295040566,-857.25159,0.00045204,7]
[321531310,1712295040576,-857.25159,0.00045204,7]
[321531312,1712295040586,-857.25159,0.00045204,7]
[321531314,1712295040595,-857.25159,0.00045204,7]
[321531316,1712295040605,-857.25159,0.00045204,7]
[321531318,1712295040614,-857.2516,0.00045204,7]
[321531320,1712295040626,-162.875921,0.00045204,7]
[321531322,1712295040636,-162.875917,0.00045204,7]
[321531324,1712295040646,-263.4365193,0.00045233,2]
[321531326,1712295040655,-153.0,0.00045233,2]
[321531328,1712295040664,-153.0,0.00045233,2]
[321531330,1712295040675,-200.0,0.00045282,30]
[321531332,1712295040684,-162.228683,0.00045296,30]
[321531334,1712295040694,-162.228683,0.00045296,30]
[321531336,1712295040703,-307.0228529,0.0004545,2]
[321531338,1712295040712,-274.6986046,0.0004545,2]
[321531339,1712295040721,-153.0,0.0004545,2]
[321531341,1712295040731,-406.9732802,0.0004545,2]
[321531344,1712295040741,-306.0,0.0004545,2]
[321531346,1712295040753,-153.0,0.0004545,2]
[321531348,1712295040763,-153.0,0.0004545,2]
[321531350,1712295040773,-153.0,0.0004545,2]
[321531352,1712295040783,-153.0,0.0004545,2]
[321531353,1712295040792,-153.0,0.0004545,2]
[321531355,1712295040802,-585.0,0.000455,30]
[321531357,1712295040811,-413.8776334,0.00045642,4]
[321531359,1712295040821,-192.293757,0.00045667,30]
[321531361,1712295040831,-163.89835,0.00045667,30]
[321531363,1712295040840,-192.293757,0.00045667,30]
[321531365,1712295040850,-163.89835,0.00045667,30]
[321531367,1712295040858,-162.228683,0.00046039,30]
[321531369,1712295040867,-162.228683,0.00046039,30]
[321531371,1712295040879,-192.293757,0.00046224,30]
[321531373,1712295040888,-163.89835,0.00046224,30]
[321531375,1712295040897,-192.293757,0.00046224,30]
[321531377,1712295040905,-163.89835,0.00046224,30]
[321531379,1712295040914,-2897.30203024,0.0004637,2]
[321531381,1712295040927,-4216.15996054,0.0004637,2]
[321531383,1712295040935,-271.82057748,0.00046573,4]
[321531385,1712295040944,-194.03363822,0.00046573,4]
[321531387,1712295040953,-441.38285714,0.00046573,4]
[321531389,1712295040963,-310.47202485,0.00046573,4]
[321531391,1712295040972,-200.55444889,0.00046573,4]
[321531393,1712295040982,-155.32017407,0.00046573,4]
[321531394,1712295040991,-811.67565784,0.00046573,4]
[321531396,1712295041000,-667.25407823,0.00046573,4]
[321531398,1712295041009,-308.74689246,0.00046574,4]
[321531400,1712295041019,-2929.0920008,0.00046574,4]
[321531402,1712295041028,-500.0,0.00046575,5]
[321531404,1712295041039,-500.0,0.00046575,5]
[321531406,1712295041049,-261.00847733,0.00046575,5]
[321531408,1712295041059,-516.24846523,0.00046575,5]
[321531410,1712295041069,-500.0,0.00046575,5]
[321531412,1712295041081,-503.83819397,0.00046575,5]
[321531413,1712295041091,-505.73261933,0.00046575,5]
[321531414,1712295041101,-500.0,0.00046575,5]
[321531415,1712295041110,-185.71440715,0.00046575,5]
[321531416,1712295041119,-500.0,0.00046575,5]
[321531417,1712295041132,-618.39,0.00046575,5]
[321531418,1712295041140,-618.39,0.00046575,5]
[321531419,1712295041151,-618.39,0.00046575,5]
[321531420,1712295041161,-618.39,0.00046575,5]
[321531421,1712295041171,-618.39,0.00046575,5]
[321531422,1712295041180,-618.39,0.00046575,5]
[321531423,1712295041190,-618.39,0.00046575,5]
[321531424,1712295041199,-618.39,0.00046575,5]
[321531425,1712295041208,-500.0,0.00046575,5]
[321531426,1712295041218,-755.62,0.00046575,5]
[321531427,1712295041228,-502.25017497,0.00046575,5]
[321531428,1712295041237,-500.0,0.00046575,5]
[321531429,1712295041246,-500.0,0.00046575,5]
[321531430,1712295041256,-1000.0,0.00046575,5]
[321531431,1712295041265,-500.0,0.00046575,5]
[321531432,1712295041275,-500.0,0.00046575,5]
[321531433,1712295041284,-501.71516278,0.00046575,5]
[321531434,1712295041294,-507.20015367,0.00046575,5]
[321531435,1712295041303,-511.85555829,0.00046575,5]
[321531436,1712295041312,-510.46588898,0.00046575,5]
[321531437,1712295041322,-505.77689922,0.00046575,5]
[321531438,1712295041331,-500.0,0.00046575,5]
[321531439,1712295041341,-500.0,0.00046575,5]
[321531440,1712295041350,-500.0,0.00046575,5]
[321531441,1712295041359,-493.95462745,0.00046575,5]
[321531442,1712295041368,-508.28722979,0.00046575,5]
[321531443,1712295041379,-500.0,0.00046575,5]
[321531444,1712295041389,-502.5567649,0.00046575,5]
[321531445,1712295041397,-500.0,0.00046575,5]
[321531446,1712295041406,-402.4127772,0.00046575,5]
[321531447,1712295041416,-155.82119286,0.00046575,5]
[321531448,1712295041425,-500.0,0.00046575,5]
[321531449,1712295041434,-500.0,0.00046575,5]
[321531450,1712295041443,-500.0,0.00046575,5]
[321531451,1712295041453,-500.0,0.00046575,5]
[321531452,1712295041463,-500.0,0.00046575,5]
[321531453,1712295041472,-513.17396579,0.00046575,5]
[321531454,1712295041481,-1161.88,0.00046575,5]
[321531455,1712295041491,-500.0,0.00046575,5]
[321531456,1712295041500,-500.0,0.00046575,5]
[321531457,1712295041510,-503.89570948,0.00046575,5]
[321531458,1712295041519,-500.0,0.00046575,5]
[321531459,1712295041529,-513.76449528,0.00046575,5]
[321531460,1712295041538,-171.68778189,0.00046575,5]
[321531461,1712295041548,-407.79062719,0.00046575,5]
[321531462,1712295041557,-508.68223859,0.00046575,5]
[321531463,1712295041566,-500.0,0.00046575,5]
[321531464,1712295041576,-500.0,0.00046575,5]
[321531465,1712295041586,-500.0,0.00046575,5]
[321531466,1712295041595,-503.84913187,0.00046575,5]
[321531467,1712295041604,-507.33887442,0.00046575,5]
[321531468,1712295041614,-500.0,0.00046575,5]
[321531469,1712295041624,-500.0,0.00046575,5]
[321531470,1712295041634,-500.0,0.00046575,5]
[321531471,1712295041643,-500.0,0.00046575,5]
[321531472,1712295041652,-1084.5,0.00046575,5]
[321531473,1712295041661,-627.12,0.00046575,5]
[321531474,1712295041766,-500.0,0.00046575,5]
[321531475,1712295041777,-500.0,0.00046575,5]
[321531476,1712295041787,-182.22627185,0.00046575,5]
[321531477,1712295041881,-317.77372815,0.00046575,5]
[321531478,1712295041891,-500.0,0.00046575,5]
[321531479,1712295041900,-500.0,0.00046575,5]
[321531480,1712295041913,-500.0,0.00046575,5]
[321531481,1712295041922,-500.0,0.00046575,5]
[321531482,1712295041932,-420.0823188,0.00046575,5]
[321531483,1712295041943,-79.9176812,0.00046575,5]
[321531484,1712295041952,-500.0,0.00046575,5]
[321531485,1712295041962,-500.0,0.00046575,5]
[321531486,1712295041971,-500.0,0.00046575,5]
[321531487,1712295041980,-500.0,0.00046575,5]
[321531488,1712295041990,-452.3193554,0.00046575,5]
[321531489,1712295042002,-47.6806446,0.00046575,5]
[321531490,1712295042012,-5091.90780074,0.00046575,5]
[321531491,1712295042023,-676.87219926,0.00046575,5]
[321531492,1712295042033,-500.0,0.00046575,5]
[321531493,1712295042043,-504.60940745,0.00046575,5]
[321531494,1712295042054,-500.0,0.00046575,5]
[321531495,1712295042067,-567.40645174,0.00046575,5]
[321531496,1712295042077,-2884.7,0.00046575,5]
[321531497,1712295042090,-509.51486224,0.00046575,5]
[321531498,1712295042102,-508.02910004,0.00046575,5]
[321531499,1712295042114,-1100.06,0.00046575,5]
[321531500,1712295042128,-430.26492888,0.00046575,5]
[321531501,1712295042139,-500.0,0.00046575,5]
[321531502,1712295042149,-500.0,0.00046575,5]
[321531503,1712295042161,-500.0,0.00046575,5]
[321531504,1712295042171,-159.18018973,0.00046575,5]
[321531505,1712295042182,-500.0,0.00046575,5]
[321531506,1712295042193,-512.2127395,0.00046575,5]
[321531507,1712295042204,-500.0,0.00046575,5]
[321531508,1712295042214,-500.0,0.00046575,5]
[321531509,1712295042224,-500.0,0.00046575,5]
[321531510,1712295042234,-503.15666256,0.00046575,5]
[321531511,1712295042244,-500.0,0.00046575,5]
[321531512,1712295042253,-500.0,0.00046575,5]
[321531513,1712295042264,-500.0,0.00046575,5]
[321531514,1712295042273,-656.83,0.00046575,5]
[321531515,1712295042283,-500.0,0.00046575,5]
[321531516,1712295042294,-500.0,0.00046575,5]
[321531517,1712295042303,-500.0,0.00046575,5]
[321531518,1712295042313,-3793.04,0.00046575,7]
[321531519,1712295042322,-502.2289312,0.00046575,5]
[321531520,1712295042332,-500.0,0.00046575,5]
[321531521,1712295042342,-505.97973996,0.00046575,5]
[321531522,1712295042351,-7373.75,0.00046575,5]
[321531523,1712295042361,-830.12,0.00046575,5]
[321531524,1712295042370,-500.0,0.00046575,5]
[321531525,1712295042382,-4813.74,0.00046575,5]
[321531526,1712295042392,-500.0,0.00046575,5]
[321531527,1712295042401,-612.20689775,0.00046575,5]
[321531528,1712295042410,-503.60144929,0.00046575,5]
[321531529,1712295042422,-42.74855071,0.00046575,5]
[321531530,1712295042431,-500.0,0.00046575,5]
[321531531,1712295042441,-16763.46,0.00046575,5]
[321531532,1712295042450,-500.0,0.00046575,5]
[321531533,1712295042459,-500.0,0.00046575,5]
[321531534,1712295042467,-500.0,0.00046575,5]
[321531535,1712295042477,-500.0,0.00046575,5]
[321531536,1712295042487,-500.0,0.00046575,5]
[321531537,1712295042496,-500.0,0.00046575,5]
[321531538,1712295042506,-500.0,0.00046575,5]
[321531539,1712295042515,-500.0,0.00046575,5]
[321531540,1712295042524,-7785.37,0.00046575,5]
[321531541,1712295042533,-500.0,0.00046575,5]
[321531542,1712295042543,-500.0,0.00046575,5]
[321531543,1712295042553,-16249.43,0.00046575,5]
[321531544,1712295042562,-501.93309081,0.00046575,5]
[321531545,1712295042571,-685.85,0.00046575,5]
[321531546,1712295042580,-541.26,0.00046575,5]
[321531547,1712295042589,-646.98,0.00046575,5]
[321531548,1712295042598,-500.0,0.00046575,5]
[321531549,1712295042607,-500.75513476,0.00046575,5]
[321531550,1712295042616,-500.0,0.00046575,5]
[321531551,1712295042629,-500.0,0.00046575,5]
[321531552,1712295042639,-1259.1,0.00046575,5]
[321531553,1712295042647,-357.62935624,0.00046575,5]
[321531554,1712295042657,-500.0,0.00046575,5]
[321531555,1712295042666,-580.04,0.00046575,5]
[321531556,1712295042676,-500.0034749,0.00046575,5]
[321531557,1712295042685,-500.0,0.00046575,5]
[321531558,1712295042695,-491.03951639,0.00046575,5]
[321531559,1712295042704,-504.18557754,0.00046575,5]
[321531560,1712295042714,-500.0,0.00046575,5]
[321531561,1712295042723,-734.78,0.00046575,5]
[321531562,1712295042733,-500.0,0.00046575,5]
[321531563,1712295042742,-1338.62,0.00046575,5]
[321531564,1712295042752,-500.0,0.00046575,5]
[321531565,1712295042761,-520.94,0.00046575,5]
[321531566,1712295042770,-3009.52,0.00046575,5]
[321531567,1712295042779,-500.0,0.00046575,5]
[321531568,1712295042788,-5000.0,0.00046575,30]
[321531569,1712295042797,-5000.0,0.00046575,30]
[321531570,1712295042807,-5000.0,0.00046575,30]
[321531571,1712295042819,-2528.68684911,0.00046575,30]
[321531572,1712295042829,-500.0,0.00046575,5]
[321531573,1712295042838,-500.0,0.00046575,5]
[321531574,1712295042848,-518.32368124,0.00046575,5]
[321531575,1712295042858,-500.0,0.00046575,5]
[321531576,1712295042867,-1165.46,0.00046575,5]
[321531577,1712295042878,-2128.91,0.00046575,5]
[321531578,1712295042887,-500.0,0.00046575,5]
[321531579,1712295042897,-500.0,0.00046575,5]
[321531580,1712295042906,-500.0,0.00046575,5]
[321531581,1712295042915,-500.0,0.00046575,5]
[321531582,1712295042924,-500.0,0.00046575,5]
[321531583,1712295042934,-6088.49,0.00046575,5]
[321531584,1712295042943,-500.0,0.00046575,5]